Workbook

Sheet Deuda
D1: SERVICIO NACIONAL DE SALUD
D2: DIRECCION DE FISCALIZACION Y CONTROL
D3: COMPROMISO DE DEUDAS AL 31 DE SEPTIEMBRE 2025
A6: ESTABLECIMIENTO:___________________________________________________________________________ | C6: REGIONAL DE SALUD HIGUAMO
A8: NO | B8: NOMBRES PROVEEDOR | C8: DESCRIPCION (CONCEPTO) | D8: FUENTE FINANCIAMIENTOS (AF-VS) | E8: DEUDA AÑOS ANTERIORES 2022 | F8: MONTO AÑO 2023 | G8: MONTO AÑO 2024 | H8: MONTO AÑO 2025 AL 31 ENERO | I8: MONTO AÑO 2025 AL 31 DE MARZO | J8: MONTO AÑO 2025 AL 30 DE ABRIL | K8: MONTO AÑO 2025 AL 30 DE MAYO | L8: MONTO AÑO 2025 AL 30 DE JUNIO | M8: MONTO AL 31 DE JULIO | N8: MONTO AÑO 2025 AL 31 DE AGOSTO | P8: TOTAL ADEUDA
B9: OVIEDO FARMA SRL | C9: COMPRA DE NEVERA | D9: VENTA DE SERVICIO | G9: 742,000.00 | P9: =G9 -> 742,000.00
B10: AYUNTAMINETO MUNICIPAL | C10: ASEO Y ALBITRIO | D10: VENTA DE SERVICIO | H10: 152,070.00 | P10: =H10 -> 152,070.00
B11: RAMIREZ PEÑA FOOD | C11: ALIMENTOS Y BEBIDAS | D11: VENTA DE SERVICIO | J11: 18,526.00 | P11: =J11 -> 18,526.00
B12: RAMIREZ PEÑA FOOD | C12: ALIMENTOS Y BEBIDAS | D12: VENTA DE SERVICIO | J12: 14,484.50 | P12: =J12 -> 14,484.50
B13: POLLO SANDIE | C13: ALIMENTOS Y BEBIDOS | D13: VENTA DE SERVICOS | K13: 9,902.00 | P13: =K13 -> 9,902.00
B14: POLLO SANDIE | C14: ALIMENTOS Y BEBIDOS | D14: VENTA DE SERVICIOS | K14: 11,023.00 | P14: =K14 -> 11,023.00
B15: POLLO SANDIE | C15: ALIMENTOS Y BEBIDOS | D15: VENTA DE SERVICIOS | K15: 34,980.00 | P15: 34,980.00
B16: SANTOS PEREZ CEDEÑO | C16: MANT DE EQUIPO | D16: VENTA DE SERVICIO | L16: 590.00 | P16: =L16 -> 590.00
B17: TOPOGRAFIA | C17: REMOZAMIENTO CPN YANIGUA | D17: VENTA DE SERVICIOS | L17: 1,222,202.19 | P17: =L17 -> 1,222,202.19
B18: CENTRO FERRETERO DEL ESTS | C18: ARTICULOS FERRETEROS | D18: VENTA DE SERVICIOS | L18: 40,774.61 | P18: =L18 -> 40,774.61
B19: CENTRO FERRETERO DEL ESTS | C19: ARTICULOS FERRETEROS | D19: VENTA DE SERVICIOS | L19: 34,598.57 | P19: =L19 -> 34,598.57
B20: COOAROM | C20: AGUA | D20: VENTA DE SERVICIOS | L20: 17,040.00 | P20: =L20 -> 17,040.00
B21: RAMIREZ PEÑA FOOD | C21: ALIMENTOS Y BEBIDAS | D21: VENTA DE SERVICIOS | L21: 39,499.50 | P21: =L21 -> 39,499.50
B22: HOME HILARIO | C22: MATERIAL DE LIMPIEZA | D22: VENTA DE SERVICIO | L22: 34,113.80 | P22: =L22 -> 34,113.80
B23: RAMIREZ PEÑA FOOT | C23: ALIMENTOS Y BEBIDAS | D23: VENTA DE SERVICIO | L23: 6,608.00 | P23: =L23 -> 6,608.00
B24: SANTOS PEREZ CEDEÑO | C24: MANT DE EQUIPO DE TRANSPORTE | D24: VENTA DE SERVICIO | M24: 590.00 | P24: =M24 -> 590.00
B25: CENTRO FERRETERO DEL ESTE | C25: ARTICULOS FERRETEROS | D25: VENTA DE SERVICIO | M25: 18,110.14 | P25: =M25 -> 18,110.14
B26: HERRERA & SANCHEZ | C26: MANT DE EQUIPÒ DE TRANSPORTE | D26: VENTA DE SERVICIO | M26: 9,480.00 | P26: =M26 -> 9,480.00
B27: SANTOS PEREZ CEDEÑO | C27: MANT DE EQUIPO DE TRANSPORTE | D27: VENTA DE SERVICIO | M27: 1,180.00 | P27: =M27 -> 1,180.00
B28: SANTOS PEREZ CEDEÑO | C28: MANT DE EQUIPO DE TRANSPORTE | D28: VENTA DE SERVICIO | M28: 590.00 | P28: =M28 -> 590.00
B29: SANTOS PEREZ CEDEÑO | C29: MANT DE EQUIPO DE TRANSPORTE | D29: VENTA DE SERVICIO | M29: 590.00 | P29: =M29 -> 590.00
B30: SANTOS PEREZ CEDEÑO | C30: MANT DE EQUIPO DE TRANSPORTE | D30: VENTA DE SERVICIO | M30: 590.00 | P30: =M30 -> 590.00
B31: SANTOS PEREZ CEDEÑO | C31: MANT DE EQUIPO DE TRANSPORTE | D31: VENTA DE SERVICIO | M31: 590.00 | P31: =M31 -> 590.00
B32: ENMNUEL CENTRO DE GOMAS | C32: REPARACION DE VEHICULOS | D32: VENTAS DE SERVICIOS | M32: 767.00 | P32: =M32 -> 767.00
B33: HOME HILARIO | C33: MATERIAL DE OFICINA | D33: VENTA DE SERVICIO | M33: 8,968.00 | P33: =M33 -> 8,968.00
B34: SERVI FRENO DIAZ | C34: MANT DE EQUIPO DE TRANSPORTE | D34: VENTA DE SERVICIO | M34: 6,000.01 | P34: =M34 -> 6,000.01
B35: SERVI FRENO DIAZ | C35: MANT DE EQUIPO DE TRANSPORTE | D35: VENTA DE SERVICIO | M35: 15,350.01 | P35: =M35 -> 15,350.01
B36: SERVI FRENO DIAZ | C36: MANT DE EQUIPO DE TRANSPORTE | D36: VENTA DE SERVICIO | M36: 5,900.00 | P36: =M36 -> 5,900.00
B37: SERVI FRENO DIAZ | C37: MANT DE EQUIPO DE TRANSPORTE | D37: VENTA DE SERVICIO | M37: 10,800.00 | P37: =M37 -> 10,800.00
B38: PAPELERIA CACTUS | C38: MATERIAL DE OFICINA | D38: VENTA DE SERVICIO | M38: 7,065.05 | P38: =M38 -> 7,065.05
B39: RAUL SANCHEZ | C39: MANT DE EQUIPO DE TRANSPORTE | D39: VENTA DE SERVICIOS | M39: 13,924.00 | P39: =M39 -> 13,924.00
B40: DISTRIBUIDORA DE GAS | C40: ARTICULOS FERRETEROS | D40: VENTA DE SERVICIOS | N40: 190,115.00 | P40: =N40 -> 190,115.00
B41: LINEXI INSUMOS MEDICOS | C41: MANT DE EQUIPO | D41: VENTA DE SERVICIOS | N41: 270,810.00 | P41: =N41 -> 270,810.00
B42: MUSABELL SRL | C42: ALIMENTOS Y BEBIDAS | D42: VENTA DE SERVICIOS | N42: 49,825.50 | P42: =N42 -> 49,825.50
B43: SERVIS FRENO DIAZ | C43: MANT DE EQUIPO DE TRANSPORTE | D43: VENTA DE SERVICIOS | N43: 12,200.00 | P43: =N43 -> 12,200.00
B44: SERVI FRENO DIAZ | C44: MANT DE EQUIPO DE TRANSPORTE | D44: VENTA DE SERVICIOS | N44: 6,950.00 | P44: =N44 -> 6,950.00
B45: MAXIMA FERRETERIA | C45: ARTICULOS FERRETEROS | D45: VENTA DE SERVICIOS | N45: 28,700.13 | P45: =N45 -> 28,700.13
B46: ROCE DENTAL | C46: UNIDAD DE ODONTOLOGIA | D46: VENTA DE SERVICIOS | N46: 749,299.99 | P46: =N46 -> 749,299.99
B47: SERVI FRENO DIAZ | C47: MANT DE EQUIPO DE TRANSPORTE | D47: VENTA DE SERVICIOS | N47: 6,400.00 | P47: =N47 -> 6,400.00
B48: BIMI STOP SRL | C48: ALIMENTOS Y BEBIDAS | D48: VENTA DE SERVICIOS | N48: 41,418.00 | P48: =N48 -> 41,418.00
B49: VASQUEZ REPUESTOS Y SERVICIOS | C49: MANT DE EQUIPOS DE TRANSPORTE | D49: VENTA DE SERVICIOS | N49: 1,850.00 | P49: =N49 -> 1,850.00
B50: VASQUEZ REPUESTOS Y SERVICIOS | C50: MANT DE EQUIPO DE TRANSPORTE | D50: VENTA DE SERVICIOS | N50: 15,040.00 | P50: =N50 -> 15,040.00
B51: DISTRIBUIDORA DE GAS | C51: ARTICULOS FERRETEROS | D51: VENTA DE SERVICIOS | N51: 114,175.01 | P51: =N51 -> 114,175.01
B52: CENTRO FERRETERO DEL ESTE | C52: ARTICULOS FERRETEROS | D52: VENTAS DE SERVICIOS | N52: 148,391.31 | P52: =N52 -> 148,391.31
B53: MAXIMA FERRETERIA | C53: ARTICULOS FERRETEROS | D53: VENTA DE SERVICIOS | N53: 132,957.06 | P53: =N53 -> 132,957.06
B54: VASQUEZ REPUESTOS Y SERVICIOS | C54: MANT DE EQUIPOS DE TRANSPORTE | D54: VENTA DE SERVICIOS | O54: 11,340.00 | P54: =O54 -> 11,340.00
B55: BIMI STOP SRL | C55: ALIMENTOS Y BEBIDAS | D55: VENTA DE SERVICIOS | O55: 7,640.00 | P55: =O55 -> 7,640.00
B56: CENTRO FERRETERO DEL ESTE | C56: ARTICULOS FERRETEROS | D56: VENTA DE SERVICIOS | O56: 48,320.02 | P56: =O56 -> 48,320.02
B57: CAPELLAN DENTAL SRL | C57: MATERIAL ODONTOLOGICO | D57: VENTA DE SERVICIOS | O57: 1,676,121.88 | P57: =O57 -> 1,676,121.88
B58: JUAN DE LEON BERROA | C58: ALIMENTOS | D58: VENTA DE SEEVICIOS | O58: 18,142.50 | P58: =O58 -> 18,142.50
B59: JUAN DE LEON BERROA | C59: ALIMENTOS ALIMENTOS | D59: VENTA DE SERVICIOS | O59: 39,471.00 | P59: =O59 -> 39,471.00
B60: CENTRO FERRETERO DEL ESTE | C60: ARTICULOS FERRETEROS | D60: VENTA DE SERVICIOS | O60: 25,030.02 | P60: =O60 -> 25,030.02
B61: MUSABELL SRL | C61: ALIMENTOS Y BEBIDAS | D61: VENTA DE SERVICIOS | O61: 52,486.40 | P61: =O61 -> 52,486.40
B62: MULTI BOX SRL | C62: MATERIAL DE LIMPIEZA | D62: VENTA DE SERVICIO | O62: 3,320.00 | P62: =O62 -> 3,320.00
B63: IMPRESORA YERALDIN | C63: SELLOS | D63: VENTA DE SERVICIOS | O63: 40,828.00 | P63: =O63 -> 40,828.00
B64: JUAN DE LEON BERROA | C64: ALIMENTOS Y BEBIDAS | D64: VENTA DE SERVICIOS | O64: 56,050.00 | P64: =O64 -> 56,050.00
B65: MARCOS ANTONIO MERCEDES | C65: REMOZAMIENTO CPN PORVENIR LOS CONUCOS Y EL BRISAR | D65: VENTA DE SERVICIOS | O65: 466,500.20 | P65: =O65 -> 466,500.20
B66: ALMACENES IBERIA SRL | C66: ALIMENTOS Y BEBIDAS | D66: VENTA DE SERVICIOS | O66: 18,207.00 | P66: =O66 -> 18,207.00
B67: IMPRESORA YERALDIN | C67: SELLOS | D67: VENTA DE SERVICIOS | O67: 40,828.00 | P67: =O67 -> 40,828.00
B68: AUTO REPUESTO PADILLA | C68: MOTOR DE VEHICULOS | D68: VENTA DE SERVICIOS | O68: 330,400.00 | P68: =O68 -> 330,400.00
B69: VASQUEZ REPUESTOS Y SERVICIOS | C69: MANT DE EQUIPO DE TRANSPORTE | D69: VENTA DE SERVICIOS | O69: 14,540.00 | P69: =O69 -> 14,540.00
P70: =M70 -> 0
B71: TOTAL GENERAL | E71: =SUM(#REF!) ->  | F71: =SUM(F10:F10) -> 0 | G71: =SUM(G9) -> 742,000.00 | H71: =SUM(H9:H10) -> 152,070.00 | I71: =SUM(I9:I10) -> 0 | J71: =SUM(J9:J12) -> 33,010.50 | K71: =SUM(K9:K70) -> 55,905.00 | L71: =SUM(L9:L70) -> 1,395,426.67 | M71: =SUM(M9:M70) -> 100,494.21 | N71: =SUM(N9:N70) -> 1,768,132.00 | O71: =SUM(O9:O70) -> 2,849,225.02 | P71: =SUM(G71:N71) -> 4,247,038.38
C72: GASTOS FIJOS
C73: EDEESTE | D73: SERVICIO DE ENERGIA ELECTRICA | P73: 6,170.09
C74: ESTACION DE COMBUSTIBLES | D74: COMBUSTIBLES | P74: 553,606.38
C75: AYUNTAMIENTO MUNICIPAL SPM | D75: SERVICIO DE ASEO | P75: 5,590.00
C76: ALQUILERES | D76: LOCAL DE LAS UNAP SRS ESTE | P76: 847,055.54
P77: =SUM(P73:P76) -> 1,412,422.01
B78: TOTAL GENERAL | P78: =P71+P77 -> $5,659,460.39
B80: Preparado Por: | C80: Revisado Por: | D80: Autorizado Por:
B83: Lic. Felicia Ubiera | C83: Lic. Crispin del Carmen R. | D83: Licda. Yudelky Jabalera
B84: Enc. De Cuentas por Cobrar | C84: Gerente Financiero | D84: Administradora
B320: TOTAL GENERAL | E320: =SUM(#REF!) ->  | F320: =SUM(#REF!) ->  | G320: =SUM(#REF!) ->  | H320: =SUM(#REF!) ->  | I320: =SUM(#REF!) ->  | J320: =SUM(#REF!) ->  | K320: =SUM(#REF!) ->  | L320: =SUM(#REF!) ->  | M320: =SUM(#REF!) ->  | N320: =SUM(#REF!) -> 
C321: GASTOS FIJOS
C322: EDEESTE | D322: SERVICIO DE ENERGIA ELECTRICA | N322: 6,170.09
C323: ESTACION DE COMBUSTIBLES | D323: COMBUSTIBLES | N323: 553,606.38
C324: AYUNTAMIENTO MUNICIPAL SPM | D324: SERVICIO DE ASEO | N324: 5,590.00
C325: ALQUILERES | D325: LOCAL DE LAS UNAP SRS ESTE | N325: 825,950.54
N326: =SUM(N322:N325) -> 1,391,317.01
B327: TOTAL GENERAL | N327: =N320+N326 -> 
B330: Preparado Por: | C330: Revisado Por: | D330: Autorizado Por:
B334: Lic. Felicia Ubiera | C334: Dr. Ricardo Julio Romero | D334: Licda. Yudelky Jabalera
B335: Enc. De Cuentas por Cobrar | C335: Director | D335: Administradora
